Cogmind - Beta 13 @@@ ROGUE MODE // 2024.04.11 @ 13:44:59 Player: captainketchup Result: Destroyed by G-47 Trooper with Particle Gun Performance ------------- Evolutions (0) 0 Regions Visited (2) 400 Robots Destroyed (27) 135 Value Destroyed (549) 549 Prototype IDs (0) 0 Alien Tech Used (0) 0 Bonus (0) 0 TOTAL SCORE: 1084 Bonus ------- None Cogmind --------- Core Integrity 0/250 Matter 300/300 Energy 115/125 System Corruption 0% Temperature Warm (106) Movement Rolling (140) Ox4 Location -10/Mines Parts ------- > --- POWER (1) -------- Light Ion Engine > --- PROPULSION (2) --- Wheel Wheel > --- UTILITY (2) ------ Huge Storage Unit Weapon Shielding > --- WEAPON (2) ------- Medium Laser Particle Gun > --- INVENTORY (25) --- Light Nuclear Core Light Nuclear Core Light Treads Light Treads Heat Sink Weapon Shielding Weapon Shielding Small Laser Assault Rifle Light Assault Rifle Peak State ------------ > --- POWER ------------ Light Ion Engine > --- PROPULSION ------- Wheel Wheel > --- UTILITY ---------- Huge Storage Unit Weapon Shielding > --- WEAPON ----------- Medium Laser Particle Gun > --- INVENTORY -------- Light Nuclear Core Light Treads Light Treads Heat Sink Weapon Shielding Weapon Shielding Medium Laser Small Laser Assault Rifle Light Assault Rifle [Rating: 9] Favorites ----------- Power Light Ion Engine Engine Light Ion Engine Propulsion Wheel Treads Light Treads Wheel Wheel Utility Huge Storage Unit Device Heat Sink Storage Huge Storage Unit Protection Weapon Shielding Weapon Medium Laser Energy Gun Medium Laser Ballistic Gun Assault Rifle Launcher Grenade Launcher Build | -11 -10 -10 ------- Run | Yrd Mat Min Slots Evolved . | . . . Power . | . . . Propulsion . | . . . Utility . | . . . Weapon . | . . . Parts Attached 18 | 8 7 3 Power 2 | 1 1 . Engine 2 | 1 1 . Core . | . . . Reactor . | . . . Propulsion 5 | 3 2 . Treads 2 | 2 . . Leg . | . . . Wheel 3 | 1 2 . Hover . | . . . Flight . | . . . Utility 4 | 1 2 1 Device 1 | . 1 . Storage 2 | 1 1 . Processor . | . . . Hackware . | . . . Protection 1 | . . 1 Artifact . | . . . Weapon 7 | 3 2 2 Energy Gun 4 | 1 1 2 Energy Cannon . | . . . Ballistic Gun 2 | 2 . . Ballistic Cannon . | . . . Launcher 1 | . 1 . Special Weapon . | . . . Impact Weapon . | . . . Slashing Weapon . | . . . Piercing Weapon . | . . . Special Melee Weapon . | . . . Unidentified Prototypes . | . . . Parts Lost 3 | . 1 2 Power 1 | . 1 . Propulsion . | . . . Utility . | . . . Weapon 2 | . . 2 Highest Loss Streak 1 | . 1 1 To Critical Strikes . | . . . Average Slot Usage (%) 94 | . 90 99 Engine 13 | . 13 14 Treads 8 | . 16 . Wheel 19 | . 11 28 Device 3 | . 5 1 Storage 14 | . 14 14 Protection 5 | . . 12 Energy Gun 15 | . 14 17 Ballistic Gun 6 | . 12 . Launcher 5 | . 1 10 Naked Turns . | . . . Heaviest Build 89 | 13 89 89 Greatest Support 40 | 40 40 20 Greatest Overweight (x) 4 | . 4 4 Average Overweight (x) 3 | . 3 4 Largest Inventory Capacity 25 | 8 25 25 Average Capacity 23 | 6 24 25 Most Carried 11 | 3 8 11 Average Carried 6 | 1 4 10 Final Capacity 25 | 8 25 25 Final Carried 10 | 3 8 10 Class Distribution -------------------- 100% | Mutant Dominant Class ---------------- Mutant | -10/Materials Mutant | -10/Mines Resources | -11 -10 -10 ----------- Run | Yrd Mat Min Matter Collected 651 | 213 234 204 Remotely . | . . . Salvage Created 617 | . 370 247 Parts 43 | . 25 18 Haulers Intercepted 1 | . 1 . Recyclers Shooed 2 | . 2 . Parts Field Recycled . | . . . Retrieved Matter . | . . . Parts Self-Destructed . | . . . Prevented . | . . . Kills | -11 -10 -10 ------- Run | Yrd Mat Min Combat Hostiles Destroyed 22 | . 10 12 Guns 12 | . 9 3 AOE 10 | . 1 9 Classes Destroyed 6 | . 5 1 Worker 2 | . 2 . Tunneler 1 | . . 1 Hauler 1 | . 1 . Watcher 1 | . 1 . Swarmer 12 | . 6 6 Grunt 10 | . 4 6 Best Kill Streak 8 | . 8 3 Combat Bots Only 5 | . 5 3 Max Kills in Single Turn 3 | . 2 3 Gunslinging . | . . . Exploded 3 | . 1 3 Melee . | . . . Uniques/NPCs Destroyed . | . . . Combat | -11 -10 -10 -------- Run | Yrd Mat Min Hostile Shots Fired 83 | . 64 19 Missed 15 | . 10 5 Damage Taken 781 | . 536 245 Core 252 | . 166 86 Absorbed by Shields . | . . . Redirected to Shielding 19 | . . 19 Core Remaining (%) 100 | 100 . . Volleys Fired 70 | . 44 26 Largest 2 | . 2 2 Hottest 115 | . 80 115 Shots Fired 120 | . 88 32 Gun 104 | . 86 18 Cannon . | . . . Launcher 16 | . 2 14 Special . | . . . Kinetic 42 | . 42 . Thermal 62 | . 44 18 Explosive 16 | . 2 14 Electromagnetic . | . . . Robot Hit Streak 12 | . 12 6 Robot Miss Streak 5 | . 5 1 Penetration Max . | . . . Secondary Targets 1 | . . 1 Max Gunslinging Chain 1 | . . 1 Shots Hit Robots 71 | . 56 15 Core Hits 39 | . 19 20 Critical Kills . | . . . Critical Parts Destroyed . | . . . Critical Strikes 4 | . 1 3 Burn 4 | . 1 3 Melee Attacks . | . . . Impact . | . . . Slashing . | . . . Piercing . | . . . Sneak Attacks . | . . . Combat Hostiles . | . . . Follow-up Attacks . | . . . Damage Inflicted 1708 | . 797 911 Guns 904 | . 732 172 Cannons . | . . . Explosions 804 | . 65 739 Melee . | . . . Ramming . | . . . Kinetic 345 | . 345 . Thermal 614 | . 387 227 Explosive 749 | . 65 684 Electromagnetic . | . . . Impact . | . . . Slashing . | . . . Piercing . | . . . Highest Corruption . | . . . Average Corruption . | . . . Corruption Purged . | . . . Corruption Blocked . | . . . Overload Shots . | . . . Overflow Damage 48 | . . 48 Projectiles . | . . . Explosions 48 | . . 48 Melee . | . . . Knockbacks . | . . . Impact . | . . . Kinetic . | . . . Secondary . | . . . Self-Inflicted Damage 99 | . 22 77 Shots 5 | . 1 4 Rammed . | . . . Targets Rammed . | . . . Kicked . | . . . Crushed . | . . . Highest Temperature 296 | . 222 296 Average Temperature 88 | . 70 124 Received Heat Transfer 291 | . 198 93 Siege Activations . | . . . Robots Corrupted . | . . . Combat Hostiles . | . . . Parts Fried . | . . . Impact Corruptions . | . . . Robots Melted . | . . . Combat Hostiles . | . . . Parts Melted 6 | . 2 4 Heat Transferred 1925 | . 1209 716 Parts Sabotaged . | . . . Parts Stolen . | . . . Parts Stripped . | . . . Power Chain Reactions . | . . . Alert | -11 -10 -10 ------- Run | Yrd Mat Min Peak Influence 337 | . 224 337 Initial 87 | . . 87 Average 155 | . 78 277 Maximum Alert Level 1 | . 1 1 Low Security (%) 57 | 100 91 8 Level 1 42 | . 8 91 Level 2 . | . . . Level 3 . | . . . Level 4 . | . . . Level 5 . | . . . High Security . | . . . Max Security . | . . . Squads Dispatched . | . . . Investigation . | . . . Extermination . | . . . Reinforcement . | . . . Assault . | . . . Garrison . | . . . Intercept . | . . . Searches Triggered . | . . . Construction Impeded . | . . . Haulers Reinforced . | . . . Active Scanning Responses . | . . . Cargo Convoy Interrupts . | . . . Stealth | -11 -10 -10 --------- Run | Yrd Mat Min Distress Signals 2 | . 2 . Communications Jammed . | . . . Distress Signals . | . . . Times Spotted 30 | . 19 11 Peak Tracking Total 6 | . 6 3 Tactical Retreats 2 | . 2 . Traps | -11 -10 -10 ------- Run | Yrd Mat Min Traps Triggered . | . . . Indirectly . | . . . Trap Hack Attempts . | . . . Triggered . | . . . Disarmed . | . . . Reprogrammed . | . . . Reused . | . . . Traps Extracted . | . . . Installed . | . . . Triggered . | . . . Machines | -11 -10 -10 ---------- Run | Yrd Mat Min Machines Disabled 1 | . . 1 Max in Single Turn 1 | . . 1 Machines Repaired . | . . . Machines Dismantled . | . . . Machines Sabotaged . | . . . Overloaded Fab Kills . | . . . Hacking | -11 -10 -10 --------- Run | Yrd Mat Min Machines Accessed 2 | . 2 . Terminals 2 | . 2 . Fabricators . | . . . Repair Stations . | . . . Recycling Units . | . . . Scanalyzers . | . . . Garrison Access . | . . . Total Hacks 5 | . 5 . Successful 2 | . 2 . Failed 3 | . 3 . Catastrophic 2 | . 2 . Database Lockouts . | . . . Manual 4 | . 4 . Terminals 5 | . 5 . Fabricators . | . . . Repair Stations . | . . . Recycling Units . | . . . Scanalyzers . | . . . Garrison Access . | . . . Terminal Hacks 2 | . 2 . Record 1 | . 1 . Branch Access Points 1 | . 1 . Fabricator Hacks . | . . . Repair Station Hacks . | . . . Recycling Unit Hacks . | . . . Scanalyzer . | . . . Garrison Access Hacks . | . . . Unauthorized Hacks . | . . . Terminals . | . . . Fabricators . | . . . Repair Stations . | . . . Recycling Units . | . . . Scanalyzers . | . . . Garrison Access . | . . . Data Cores Recovered . | . . . Used . | . . . Hacking Detections 1 | . 1 . Full Trace Events 1 | . 1 . Feedback Events . | . . . Feedback Blocked . | . . . Robot Schematics Acquired . | . . . Robots Built . | . . . Authchips . | . . . Time . | . . . Total Robot Build Rating . | . . . Part Schematics Acquired . | . . . Parts Built . | . . . Authchips . | . . . Time . | . . . Total Part Build Rating . | . . . Parts Repaired . | . . . Time . | . . . Parts Recycled . | . . . Recycled Matter . | . . . Retrieved Matter . | . . . Retrieved Components . | . . . Parts Scanalyzed . | . . . Part Schematics Acquired . | . . . Parts Damaged . | . . . Bothacking | -11 -10 -10 ------------ Run | Yrd Mat Min Used RIF Installer . | . . . Robots Hacked . | . . . Non-combat . | . . . Combat . | . . . Robot Hacks Applied . | . . . Relay Couplers Released . | . . . Fabnet Peak Effective % . | . . . Robots Rewired . | . . . Allies Hacked . | . . . Hacks Repelled . | . . . Allies | -11 -10 -10 -------- Run | Yrd Mat Min Total Allies . | . . . Largest Group . | . . . Highest-Rated Group . | . . . Highest-Rated Ally . | . . . Total Orders . | . . . Ally Attacks . | . . . Total Damage . | . . . Kills . | . . . Allies Corrupted . | . . . Allies Melted . | . . . Intel | -11 -10 -10 ------- Run | Yrd Mat Min Robot Analysis Total . | . . . Derelict Logs Recovered 1 | . . 1 Drone Launches . | . . . Drone Recoveries . | . . . Exploration | -11 -10 -10 ------------- Run | Yrd Mat Min Turns Passed 1382 | 118 686 578 Spaces Moved 689 | 67 255 367 Core 2 | 2 . . Treads 166 | 62 104 . Legs . | . . . Wheels 521 | 3 151 367 Hover . | . . . Flight . | . . . Fastest Speed 50 | 50 140 140 Average Speed 166 | 154 208 140 Slowest Speed 320 | 160 320 140 Overloaded Moves . | . . . Propulsion Burnouts . | . . . Robots Hopped . | . . . Cave-ins Triggered . | . . . Exploration Rate (%) 40 | 5 34 83 Regions Visited 2 Branch Regions 1 Pre-discovered Areas . | . . . Known Exits Taken 1 | . 1 . Unknown Exits Taken 1 | 1 . . Scrap Searched 1 | . . 1 Spaces Dug . | . . . Terrain Destroyed 108 | . 9 99 Melee . | . . . Projectile . | . . . AOE 108 | . 9 99 Terrain Rammed . | . . . Walls Destroyed . | . . . Machines Disabled . | . . . Actions | -11 -10 -10 --------- Run | Yrd Mat Min Total 799 | 79 320 400 Wait 9 | 1 8 . Move 687 | 66 254 367 Hop . | . . . Pick Up 11 | 2 5 4 Fast Attach 11 | 8 3 . Attach 3 | . 1 2 Detach 2 | 1 1 . Swap 4 | . 3 1 Drop 2 | 1 1 . Fire 70 | . 44 26 Melee . | . . . Ram . | . . . Kick . | . . . Crush . | . . . Escape Stasis . | . . . Rewire . | . . . Trap . | . . . Miscellaneous . | . . . Route ------- -11/Scrapyard -10/Materials (discovered 3 exits: [*Mat] / *Min x2) -10/Mines (discovered 2 exits: [*Mat x2]) History --------- Turn | Location | Event 16 | -11/Scrapyard | Discovered new exit (range 15) 119 | -11/Scrapyard | Entered Materials 307 | -10/Materials | Build established: Mutant 610 | -10/Materials | Core integrity fell below 50% 636 | -10/Materials | Discovered new exit (range 16) 645 | -10/Materials | Identified exit to Mines 805 | -10/Materials | Entered Mines 806 | -10/Mines | Core integrity fell below 20% 1072 | -10/Mines | Found a hidden stash of uninstalled traps 1125 | -10/Mines | Discovered new exit (range 15) 1219 | -10/Mines | Discovered new exit (range 11) 1383 | -10/Mines | Destroyed by G-47 Trooper with Particle Gun Last Messages --------------- R-06 Scavenger collects Lgt. Assault Rifle. K-01 Serf collects debris. R-06 Scavenger collects Flight Unit. G-34 Mercenary suffers critical hit (Burn). Heat Sink melted. Aluminum Leg melted. G-34 Mercenary destroyed. Switching to secondary target: G-47 Trooper. Med. Laser destroyed. G-47 Trooper suffers critical hit (Burn). G-47 Trooper overheating. G-47 Trooper heat spikes uncontrollably. G-47 Trooper overheating. Imp. Heat Sink melted. Aluminum Leg melted. G-47 Trooper destroyed. Acquired 10 matter. Acquired Lgt. Nuclear Core. Acquired derelict log, extracted data. Data stored: Recycling entrances (x1). Map ----- +----------------------------------------------------+ | ??# ##?## ##? | | ??## ###### ##?## ## | | ???### ##????####??# # | | ?????## # #???????????# # | | ??????## ## #???????????## < # | | ???????# ?# #???????????# # | | ???????# ?# #???????????# # | | ???????# ?# #???????????# | | ???????# ## #???????????#### | | ???????# #??????????????# | | ???????# #??????????????# | | ???????# ####??????????????# # | | ???????# k#?????????????????# # | | ???????# #???????# ##### # | | ??????## #?????????# | | ?????## ###????????# ### ### # | | ????## ##????##??????#???# # | | ????# ##?? ## ??????# | | ????# ## ????? | | ????# ????? | | ????# ????? | | ????# ????? | | ???## #????? | | ??## ### ## #?????? | | ??# #####??###????????? | | ??# @ #?????????????????? | | ??## #??????????????? | | ???###### #??????????????## | | ????????## #????????????????## | | ??????????# #????????????????? | | ???????????# #????????????????? | | ????????????# #???????????????? | | ????????????? g ??????????????? | | ?????????????? g ?????????????? | | ?????????????? ????????????? | | ??????????????? ????????????? | | ???????????????? ????????????? | | ????????????????? ??????????????? | | ????????????????????????????????? | | ????????????????????????????????? | | ????????????????????????????????? | | ????????????????????????????????? | | ????????????????????????????????? | | ????????????????????????????????? | | ????????????????????????????????? | | ????????????????????????????????? | | ????????????????????????????????? | | ????????????????????????????????? | | ????????????????????????????????? | | ????????????????????????????????? | +----------------------------------------------------+ Best States ------------- Heat Dissipation 35 Energy Generation 10 Energy Capacity 250 Matter Stores 300 Matter Capacity 300 Sight Range 16 Terrain Scan Density 10 Weapon Shielding 33 Evasion (%) 40 Recoil Reduction 2 Item Schematics ----------------- None Robot Schematics ------------------ None Fabricated ------------ Nothing Alien Tech Used ----------------- None Achievements -------------- None Challenges ------------ None Game ------ Seed ScatterTacticalGreatsword Manual? 0 Play Time 00:12:29 Cumulative 14.3 hours Start 2024.04.11 @ 13:35:40 End 2024.04.11 @ 13:44:59 Sessions 1 Manual Loads 0 Difficulty Rogue Special Mode None Game No. 13 Rogue 13 Adventurer 0 Explorer 0 Win Type - Total 0 Types 0/0/0/0/0/0/0/0/0 Lore% 24 Gallery% 21 Achievement% 26 Wizard Run 0 Options --------- Layout 1 ASCII 0 Keyboard 0 Movement Arrows Keybinds 0 Fullscreen 0 Font 20/SmallcapsGlow Map View 50x35 Zoom Use 0% Tactical HUD 0 Map Filters NONE Filters NONE Steam 1 RUN: ecb13742-bcab-48ca-ac9a-1ed8953d26bc